Cogmind - Beta 10.2 @@@ ROGUE MODE // 2021.12.17 @ 20:24:06 Player: TLFP Result: Destroyed by G-47 Trooper with Particle Gun Performance ------------- Evolutions (2) 1000 Regions Visited (5) 1000 Robots Destroyed (26) 130 Value Destroyed (773) 773 Prototype IDs (24) 480 Alien Tech Used (0) 0 Bonus (374) 374 TOTAL SCORE: 3757 Bonus ------- Follower Combat Kills 74 Aligned with FarCom 300 Cogmind --------- Core Integrity 0/550 Matter 21/300 Energy 44/290 System Corruption 0% Temperature Cool (27) Movement Core (600) Ox11 Location -8/Materials Parts ------- > --- POWER (1) -------- Improved Deuterium Engine > --- PROPULSION (4) --- (None) > --- UTILITY (4) ------ Medium Storage Unit Improved Salvage Targeting Computer > --- WEAPON (2) ------- YOLO Cannon > --- INVENTORY (8) ---- Light Nuclear Core Improved Deuterium Engine Experimental Sensor Array Faulty Advanced Beam Rifle Gauss Rifle Peak State ------------ > --- POWER ------------ Improved Deuterium Engine > --- PROPULSION ------- Light Treads Light Treads Light Treads Wheel > --- UTILITY ---------- Small Storage Unit Medium Storage Unit Improved Salvage Targeting Computer Improved Medium Armor Plating > --- WEAPON ----------- YOLO Cannon > --- INVENTORY -------- Light Nuclear Core Improved Deuterium Engine Improved Deuterium Engine Improved Deuterium Engine Experimental Sensor Array Advanced Terrain Scan Processor Advanced Beam Rifle [Rating: 40] Favorites ----------- Power Light Ion Engine Engine Light Ion Engine Power Core Light Nuclear Core Propulsion Wheel Treads Light Treads Leg Aluminum Leg Wheel Wheel Flight Unit Flight Unit Utility Small Storage Unit Storage Small Storage Unit Processor Improved Salvage Targeting Computer Protection Improved Medium Armor Plating Weapon Light Assault Rifle Energy Gun EM Pulse Gun Energy Cannon YOLO Cannon Ballistic Gun Light Assault Rifle Launcher Rocket Launcher Build | -11 -10 -10 -10 -9 -8 ------- Run | Scr Mat Min Exi Min Mat Slots Evolved 4 | . . . . . 4 Power . | . . . . . . Propulsion 2 | . . . . . 2 Utility 2 | . . . . . 2 Weapon . | . . . . . . Parts Attached 25 | . . 4 4 4 13 Power 4 | . . . . 2 2 Engine 3 | . . . . 1 2 Core 1 | . . . . 1 . Reactor . | . . . . . . Propulsion 9 | . . 2 2 . 5 Treads 5 | . . 2 . . 3 Leg 1 | . . . . . 1 Wheel 2 | . . . 2 . . Hover . | . . . . . . Flight 1 | . . . . . 1 Utility 3 | . . 1 . . 2 Device . | . . . . . . Storage 1 | . . 1 . . . Processor 1 | . . . . . 1 Hackware . | . . . . . . Protection 1 | . . . . . 1 Artifact . | . . . . . . Weapon 9 | . . 1 2 2 4 Energy Gun 1 | . . . . . 1 Energy Cannon 2 | . . . . . 2 Ballistic Gun 4 | . . . 2 1 1 Ballistic Cannon . | . . . . . . Launcher 2 | . . 1 . 1 . Special Weapon . | . . . . . . Impact Weapon . | . . . . . . Slashing Weapon . | . . . . . . Piercing Weapon . | . . . . . . Special Melee Weapon . | . . . . . . Unidentified Prototypes 1 | . . . . . 1 Parts Lost 13 | . . 1 . 1 11 Power 1 | . . . . . 1 Propulsion 7 | . . . . . 7 Utility 2 | . . . . . 2 Weapon 3 | . . 1 . 1 1 Highest Loss Streak 10 | . . 1 . 1 10 Average Slot Usage (%) 90 | . 85 83 100 100 88 Engine 11 | . 14 14 14 5 7 Core 1 | . . . . 8 . Treads 11 | . . 21 . . 16 Leg 4 | . 28 6 . . . Wheel 12 | . . . 28 28 13 Storage 21 | . 14 21 28 28 17 Processor 2 | . . . . . 9 Protection 1 | . . . . . 7 Energy Gun 2 | . 14 4 . . . Ballistic Gun 15 | . 14 14 28 14 7 Launcher 4 | . . 1 . 14 7 Naked Turns . | . . . . . . Heaviest Build 37 | 10 10 20 17 25 37 Greatest Support 40 | 20 20 40 20 20 40 Greatest Overweight (x) 10 | . . . . 1 10 Average Overweight (x) . | . . . . . 1 Largest Inventory Capacity 10 | . 6 10 10 10 10 Average Capacity 8 | . 6 8 10 10 9 Most Carried 10 | . 6 10 10 10 10 Average Carried 8 | . 6 7 9 9 8 Final Capacity 10 | 6 6 10 10 10 8 Final Carried 10 | 6 6 10 10 10 5 Class Distribution -------------------- 100% | Mutant Dominant Class ---------------- Mutant | -10/Materials Mutant | -10/Mines Mutant | -10/Exiles Mutant | -9/Mines Mutant | -8/Materials Resources | -11 -10 -10 -10 -9 -8 ----------- Run | Scr Mat Min Exi Min Mat Matter Collected 351 | 200 . 41 . 41 69 Remotely . | . . . . . . Salvage Created 708 | . . 152 . 140 416 Parts 40 | . . 4 . 9 27 Haulers Intercepted 2 | . . . . . 2 Recyclers Shooed . | . . . . . . Parts Field Recycled . | . . . . . . Retrieved Matter . | . . . . . . Parts Self-Destructed . | . . . . . . Prevented . | . . . . . . Kills | -11 -10 -10 -10 -9 -8 ------- Run | Scr Mat Min Exi Min Mat Combat Hostiles Destroyed 20 | . . 3 . 7 10 Guns 4 | . . 3 . . 1 Cannons 1 | . . . . . 1 AOE 15 | . . . . 7 8 Classes Destroyed 8 | . . 1 . 1 6 Worker 2 | . . . . . 2 Builder 1 | . . . . . 1 Hauler 2 | . . . . . 2 Recycler 1 | . . . . . 1 Swarmer 4 | . . . . 3 1 Grunt 14 | . . 3 . 4 7 Brawler 1 | . . . . . 1 Duelist 1 | . . . . . 1 Best Kill Streak 11 | . . 3 . 3 11 Combat Bots Only 5 | . . 3 . 3 5 Max Kills in Single Turn 2 | . . 1 . 2 2 Gunslinging . | . . . . . . Exploded 2 | . . . . 2 2 Melee . | . . . . . . Uniques/NPCs Destroyed . | . . . . . . Combat | -11 -10 -10 -10 -9 -8 -------- Run | Scr Mat Min Exi Min Mat Damage Taken 2372 | . . 410 . 48 1914 Core 649 | . . 74 . 15 560 Absorbed by Shields . | . . . . . . Core Remaining (%) 82 | 100 . . . 64 . Volleys Fired 44 | . . 16 . 6 22 Largest 2 | . . 2 . 2 2 Hottest 100 | . . 60 . 53 100 Shots Fired 61 | . . 29 . 8 24 Gun 40 | . . 29 . 2 9 Cannon 3 | . . . . . 3 Launcher 18 | . . . . 6 12 Special . | . . . . . . Kinetic 27 | . . 16 . 2 9 Thermal 3 | . . . . . 3 Explosive 18 | . . . . 6 12 Electromagnetic 13 | . . 13 . . . Robot Hit Streak 9 | . . 9 . 1 3 Robot Miss Streak 3 | . . 2 . 3 2 Penetration Max 1 | . . . . . 1 Secondary Targets 2 | . . 2 . . . Max Gunslinging Chain 1 | . . 1 . . . Shots Hit Robots 37 | . . 24 . 1 12 Core Hits 54 | . . 9 . 11 34 Critical Hits . | . . . . . . Critical Kills . | . . . . . . Critical Parts Destroyed . | . . . . . . Melee Attacks . | . . . . . . Impact . | . . . . . . Slashing . | . . . . . . Piercing . | . . . . . . Sneak Attacks . | . . . . . . Combat Hostiles . | . . . . . . Follow-up Attacks . | . . . . . . Damage Inflicted 2265 | . . 300 . 398 1567 Guns 443 | . . 264 . 6 173 Cannons 113 | . . . . . 113 Explosions 1700 | . . 34 . 392 1274 Melee . | . . . . . . Ramming 9 | . . 2 . . 7 Kinetic 274 | . . 95 . 6 173 Thermal 464 | . . 34 . . 430 Explosive 1349 | . . . . 392 957 Electromagnetic 169 | . . 169 . . . Impact . | . . . . . . Slashing . | . . . . . . Piercing . | . . . . . . Highest Corruption . | . . . . . . Average Corruption . | . . . . . . Corruption Purged . | . . . . . . Overload Shots . | . . . . . . Overflow Damage 10 | . . . . . 10 Projectiles . | . . . . . . Explosions 10 | . . . . . 10 Melee . | . . . . . . Knockbacks . | . . . . . . Impact . | . . . . . . Kinetic . | . . . . . . Secondary . | . . . . . . Self-Inflicted Damage 36 | . . 34 . . 2 Shots 1 | . . 1 . . . Rammed 3 | . . 1 . . 2 Targets Rammed 3 | . . 1 . . 2 Kicked . | . . . . . . Crushed . | . . . . . . Highest Temperature 465 | . . 198 . 12 465 Average Temperature 103 | . . 92 . 9 116 Received Heat Transfer 843 | . . 195 . . 648 Siege Activations . | . . . . . . Robots Corrupted . | . . . . . . Combat Hostiles . | . . . . . . Parts Fried . | . . . . . . Impact Corruptions . | . . . . . . Robots Melted . | . . . . . . Combat Hostiles . | . . . . . . Parts Melted . | . . . . . . Heat Transferred 500 | . . 100 . . 400 Parts Sabotaged . | . . . . . . Parts Stolen . | . . . . . . Parts Stripped . | . . . . . . Power Chain Reactions 1 | . . 1 . . . Missiles Intercepted . | . . . . . . Alert | -11 -10 -10 -10 -9 -8 ------- Run | Scr Mat Min Exi Min Mat Peak Influence 376 | . 23 140 . 190 376 Initial 74 | . . 8 . . 74 Average 86 | . 7 36 . 114 169 Maximum Alert Level 1 | . . . . . 1 Low Security (%) 88 | . 100 100 . 100 61 Level 1 11 | . . . . . 38 Level 2 . | . . . . . . Level 3 . | . . . . . . Level 4 . | . . . . . . Level 5 . | . . . . . . High Security . | . . . . . . Max Security . | . . . . . . Squads Dispatched 2 | . . . . 1 1 Investigation 2 | . . . . 1 1 Extermination . | . . . . . . Reinforcement . | . . . . . . Assault . | . . . . . . Garrison . | . . . . . . Intercept . | . . . . . . Construction Impeded . | . . . . . . Haulers Reinforced . | . . . . . . Stealth | -11 -10 -10 -10 -9 -8 --------- Run | Scr Mat Min Exi Min Mat Distress Signals 3 | . . . . . 3 Communications Jammed . | . . . . . . Distress Signals . | . . . . . . Times Spotted 36 | . 1 7 . 5 23 Peak Tracking Total 13 | . 1 3 . 3 13 Tactical Retreats . | . . . . . . Traps | -11 -10 -10 -10 -9 -8 ------- Run | Scr Mat Min Exi Min Mat Traps Triggered 1 | . . . . . 1 Indirectly . | . . . . . . Trap Hack Attempts . | . . . . . . Triggered . | . . . . . . Disarmed . | . . . . . . Reprogrammed . | . . . . . . Reused . | . . . . . . Traps Extracted . | . . . . . . Installed . | . . . . . . Triggered . | . . . . . . Machines | -11 -10 -10 -10 -9 -8 ---------- Run | Scr Mat Min Exi Min Mat Machines Disabled 4 | . . . . 1 3 Max in Single Turn 2 | . . . . 1 2 Machines Sabotaged . | . . . . . . Garrisons Compromised . | . . . . . . Overloaded Fab Kills . | . . . . . . Fab Network Shutdowns . | . . . . . . Hacking | -11 -10 -10 -10 -9 -8 --------- Run | Scr Mat Min Exi Min Mat Machines Accessed 7 | . 1 . 4 1 1 Terminals 2 | . 1 . . . 1 Fabricators . | . . . . . . Repair Stations . | . . . . . . Recycling Units . | . . . . . . Scanalyzers . | . . . . . . Garrison Access . | . . . . . . Total Hacks 31 | . 1 . 27 1 2 Successful 30 | . 1 . 27 1 1 Failed 1 | . . . . . 1 Catastrophic . | . . . . . . Database Lockouts . | . . . . . . Manual 4 | . 1 . 1 . 2 Terminals 3 | . 1 . . . 2 Fabricators . | . . . . . . Repair Stations . | . . . . . . Recycling Units . | . . . . . . Scanalyzers . | . . . . . . Garrison Access . | . . . . . . Terminal Hacks 29 | . 1 . 27 1 . Record 26 | . . . 26 . . Open Door 1 | . . . . 1 . Branch Access Points 1 | . 1 . . . . EX-Prototype ID Bank 1 | . . . 1 . . Fabricator Hacks . | . . . . . . Repair Station Hacks . | . . . . . . Recycling Unit Hacks . | . . . . . . Scanalyzer . | . . . . . . Garrison Access Hacks . | . . . . . . Unauthorized Hacks 1 | . . . . . 1 Terminals 1 | . . . . . 1 Assimilate 1 | . . . . . 1 Fabricators . | . . . . . . Repair Stations . | . . . . . . Recycling Units . | . . . . . . Scanalyzers . | . . . . . . Garrison Access . | . . . . . . Data Cores Recovered . | . . . . . . Used . | . . . . . . Hacking Detections 1 | . . . . . 1 Full Trace Events . | . . . . . . Feedback Events . | . . . . . . Feedback Blocked . | . . . . . . Robot Schematics Acquired . | . . . . . . Robots Built . | . . . . . . Matter . | . . . . . . Time . | . . . . . . Total Robot Build Rating . | . . . . . . Part Schematics Acquired . | . . . . . . Parts Built . | . . . . . . Matter . | . . . . . . Time . | . . . . . . Total Part Build Rating . | . . . . . . Parts Repaired . | . . . . . . Time . | . . . . . . Parts Recycled . | . . . . . . Recycled Matter . | . . . . . . Retrieved Matter . | . . . . . . Retrieved Components . | . . . . . . Parts Scanalyzed . | . . . . . . Part Schematics Acquired . | . . . . . . Parts Damaged . | . . . . . . Bothacking | -11 -10 -10 -10 -9 -8 ------------ Run | Scr Mat Min Exi Min Mat Used RIF Installer . | . . . . . . Robots Hacked . | . . . . . . Non-combat . | . . . . . . Combat . | . . . . . . Robot Hacks Applied . | . . . . . . Relay Couplers Released . | . . . . . . Robots Rewired . | . . . . . . Allies Hacked . | . . . . . . Hacks Repelled . | . . . . . . Allies | -11 -10 -10 -10 -9 -8 -------- Run | Scr Mat Min Exi Min Mat Total Allies 2 | . . 1 . . 1 Largest Group 1 | . . 1 1 . 1 Highest-Rated Group 31 | . . 31 31 . 10 Highest-Rated Ally 31 | . . 31 31 . 10 Total Orders . | . . . . . . Ally Attacks 12 | . . 12 . . . Total Damage 125 | . . 125 . . . Kills 4 | . . 4 . . . Allies Corrupted . | . . . . . . Allies Melted . | . . . . . . Intel | -11 -10 -10 -10 -9 -8 ------- Run | Scr Mat Min Exi Min Mat Robot Analysis Total . | . . . . . . Derelict Logs Recovered 2 | . . 1 . 1 . Drone Launches . | . . . . . . Drone Recoveries . | . . . . . . Exploration | -11 -10 -10 -10 -9 -8 ------------- Run | Scr Mat Min Exi Min Mat Turns Passed 1775 | . 159 612 331 238 435 Spaces Moved 1290 | 1 133 377 318 246 215 Core 4 | . . . . . 4 Treads 292 | . . 259 . . 33 Legs 265 | 1 133 118 . . 13 Wheels 727 | . . . 318 246 163 Hover . | . . . . . . Flight 2 | . . . . . 2 Fastest Speed 80 | 120 120 120 80 80 90 Average Speed 110 | 120 120 147 80 85 112 Slowest Speed 550 | 120 120 160 80 90 550 Overloaded Moves . | . . . . . . Propulsion Burnouts . | . . . . . . Robots Hopped . | . . . . . . Cave-ins Triggered . | . . . . . . Exploration Rate (%) 45 | 1 29 85 64 62 29 Regions Visited 5 Branch Regions 3 Pre-discovered Areas 1 | . . 1 . . . Known Exits Taken 1 | . 1 . . . . Unknown Exits Taken 4 | 1 . 1 1 1 . Scrap Searched 3 | . . 3 . . . Spaces Dug 10 | . . . . 10 . Terrain Destroyed 139 | . . 5 . 69 65 Melee . | . . . . . . Projectile 3 | . . . . . 3 AOE 136 | . . 5 . 69 62 Terrain Rammed . | . . . . . . Walls Destroyed . | . . . . . . Machines Disabled . | . . . . . . Actions | -11 -10 -10 -10 -9 -8 --------- Run | Scr Mat Min Exi Min Mat Total 1574 | . 132 405 393 266 378 Wait 188 | . . 3 69 3 113 Move 1285 | . 132 376 317 245 215 Hop . | . . . . . . Pick Up 17 | . . 5 1 4 7 Fast Attach 3 | . . 1 . . 2 Attach 12 | . . 1 . 1 10 Detach 3 | . . . . . 3 Swap 10 | . . 2 4 3 1 Drop 9 | . . . 2 4 3 Fire 44 | . . 16 . 6 22 Melee . | . . . . . . Ram 1 | . . . . . 1 Kick . | . . . . . . Crush 2 | . . 1 . . 1 Escape Stasis . | . . . . . . Rewire . | . . . . . . Trap . | . . . . . . Miscellaneous . | . . . . . . Route ------- -11/Scrapyard -10/Materials (discovered 2 exits: *Min x2) -10/Mines -10/Exiles -9/Mines -8/Materials (discovered 1 exit: Fac) History --------- Turn | Location | Event 1 | -11/Scrapyard | Discovered new exit (range 0) 1 | -11/Scrapyard | Entered Materials 37 | -10/Materials | Identified exit to Mines 160 | -10/Materials | Entered Mines 189 | -10/Mines | Met a Derelict bent on vengeance 305 | -10/Mines | Build established: Mutant 349 | -10/Mines | Escorted by a lone wolf Derelict 547 | -10/Mines | Received a Rocket Launcher from a helpful Derelict 744 | -10/Mines | Learned location of Zion (-7) 762 | -10/Mines | Deemed a non-threat by the Exiles lab entrance 763 | -10/Mines | Discovered new exit (range 5) 772 | -10/Mines | Entered Exiles 772 | -10/Exiles | Accompanied by 1 ally 797 | -10/Exiles | Met 8R-AWN 900 | -10/Exiles | Met EX-HEX 925 | -10/Exiles | Met EX-BIN 935 | -10/Exiles | Aligned with FarCom system 936 | -10/Exiles | Given EX-Vault access code 977 | -10/Exiles | Opened EX-Vault 985 | -10/Exiles | Found YOLO Cannon 1002 | -10/Exiles | Warned to stay clear of 0b10 Research branches 1026 | -10/Exiles | Met EX-DEC 1094 | -10/Exiles | Discovered new exit (range 14) 1103 | -10/Exiles | Left Exiles lab with YOLO Cannon 1103 | -10/Exiles | Entered Mines 1188 | -9/Mines | Met a Derelict shopkeep closing up shop 1252 | -9/Mines | Found a damaged Exp. Sensor Array with a note attached 1256 | -9/Mines | Found Prototype Device 1337 | -9/Mines | Discovered new exit (range 5) 1341 | -9/Mines | Entered Materials 1341 | -8/Materials | Evolved 4 slots: Propulsion x2, Utility x2 1342 | -8/Materials | Identified exit to Factory 1752 | -8/Materials | Core integrity fell below 50% 1767 | -8/Materials | Core integrity fell below 20% 1776 | -8/Materials | Destroyed by G-47 Trooper with Particle Gun Last Messages --------------- 01722_ Acquired 17 matter. 01723_ Imp. Medium Armor Plating destroyed. 01727_ Imp. Deuterium Engine destroyed. 01727_ Slug penetrates S-10 Pest. 01729_ Slug penetrates Y-45 Defender. 01731_ Slug penetrates S-10 Pest. 01738_ Slammed into S-10 Pest. 01740_ Acquired Flight Unit. 01740_ Wheel destroyed. 01744_ Flight Unit destroyed. 01751_ Acquired Imp. Aluminum Leg. 01754_ R-06 Scavenger collects Imp. Heat Sink. 01756_ Sml. Storage Unit destroyed. 01756_ Acquired 30 matter. 01757_ R-06 Scavenger collects Aluminum Leg. 01770_ Electrolysis Chamber disabled. 01773_ K-01 Serf collects debris. 01774_ W-25 Informer sends out distress signal. 01774_ Imp. Aluminum Leg destroyed. 01776_ K-01 Serf collects debris. Map ----- +----------------------------------------------------+ | | | | | ?????????????????????????????????????????????????? | | ?????????????????????????????????????????????????? | | ?????????????????????????????????????????????????? | | ?????????????????????????????????????????????????? | | ?????????????????????????????????????????????????? | | ?????????????????????????????????????????????????? | | ?????????????????????????????????????????????????? | | ?????????????????????????????????????????????????? | | ?????????????????????????????????????????????????? | | ?????????????????????????????????????????????????? | | ??????????????????? ?????????????????????????????? | | ?????????????????? ????????????????????????????? | | ??????????????????? ???????????????????????????? | | ???????????????????# ??????????????????????????? | | ???????????????????# ?????####?????????????????? | | ???????????????????# ????#"""#?????????????????? | | ???????????????????# #####"Y"#######???????????? | | ???????????????????# #???????????? | | ???????????????????+ #???????????? | | ???????????????????# [ ^ #???????????? | | ???????????????????#^ w #???????????? | | ???????????????????# """ """k =[ #######?????? | | ???????????????????# """ " " [r # ?????? | | ???????????????????# " @ " + ??????? | | ???????????????????# # """ """ ??? | | ???????????????????# ; """ S" #?? | | ???????????????????# ; """ #?? | | ???????????????????# ####;;; ; %g ; !#?? | | ??????????????????Y# #??# ! w ss ; #?? | | ???????????????????# #??# g ;! % #?? | | ???????????????????+ #??# gYb ;#########??? | | ???????????????????# #??# ;#??????????? | | ???????????????????# #??# * ;#??????????? | | ???????????????????# #??# a%!"#??????????? | | ???????????????????# #??##### / "#########??? | | ??????????#+????#+## # # # #??? | | ??????????# ????# # # # """ #??? | | ??????????# ????# + # # """ #??? | | ??????????# ????# # # = #[""" #??? | | ??????????# ##### # #[%*/ / | | ??????????# ########### =# """ #??? | | ??????????# ######+##?????????### # """ #??? | | ??????????# #???????????????????# # """ #??? | | ??????????+ #???????????????????# # #??? | | ??????????# #???????????????????# #########???? | | ??????????# #???????????????????# #???????????? | | ??????????# #???????????????????# ???????????? | | ??????????# #????????????????????+#???????????? | +----------------------------------------------------+ Best States ------------- Heat Dissipation 31 Energy Generation 16 Energy Capacity 290 Matter Stores 300 Matter Capacity 300 Sight Range 16 Terrain Scan Density 10 Armor Coverage 225 Evasion (%) 44 Recoil Reduction 2 Salvage Targeting 2 Item Schematics ----------------- None Robot Schematics ------------------ None Fabricated ------------ Nothing Alien Tech Used ----------------- None Achievements -------------- None Challenges ------------ None Game ------ Seed GravitonArmoredRigger Manual? 0 Play Time 00:18:37 Cumulative 46.6 hours Start 2021.12.17 @ 20:00:10 End 2021.12.17 @ 20:24:06 Sessions 1 Manual Loads 0 Difficulty Rogue Special Mode None Game No. 34 Rogue 5 Adventurer 24 Explorer 5 Win Type - Total 0 Types 0/0/0/0/0/0/0/0/0 Lore% 29 Gallery% 49 Achievement% 39 Wizard Run 0 Options --------- ASCII 0 Keyboard 0 Movement Mouse Keybinds 0 Fullscreen 1 Font 18/SmallcapsGlow Map View 76x50 Tactical HUD 1 Map Filters NONE Filters NONE Steam 1 RUN: 4ca73b15-99f6-442d-b8c9-ecbbf3347c7a